[Event "CCT Airthings Masters Play-In 2023"]
[Site "Online"]
[Date "2023.02.03"]
[Round "4"]
[White "PSvidler"]
[Black "EvgenyT"]
[Result "1-0"]
[ECO "A09"]
[WhiteElo "2754"]
[BlackElo "2562"]
[Annotator "TA"]
[PlyCount "101"]
[EventDate "2023.02.03"]
[EventType "swiss"]
[EventCountry "NET"]
[SourceTitle "playchess.com"]
[Source "ChessBase"]
[SourceQuality "1"]
[TimeControl "600+2"]

{[%evp 9,101,0,0,-13,0,0,0,-13,0,-21,9,2,14,18,20,-5,0,0,0,0,0,0,-2,0,-7,-13,-9,-20,0,0,0,-13,0,0,68,65,58,59,89,4,57,50,130,64,129,129,166,159,160,143,239,157,200,200,200,200,200,200,200,207,207,207,202,200,200,196,262,254,337,319,293,262,502,502,471,434,1411,1386,1024,225,1460,1450,1205,895,29962,29963,8009,5097,29980,29980,29982,29983,29987,29988]} 1. Nf3 {[%emt 0:00:08]} d5 {[%emt 0:00:04]} 2. g3 {[%emt 0:00:01]} g6 {[%emt 0:00:03]} 3. c4 {[%emt 0:00:10]} dxc4 {[%emt 0:00:12]} 4. Na3 {[%emt 0:00:08]} Bg7 {[%emt 0:00:04]} 5. Nxc4 {[%emt 0:00:01]} Nc6 {[%emt 0:00:06]} 6. d3 {[%emt 0:00:03] A09: Réti Opening: 1 Nf3 d5 2 c4.} e5 {[%emt 0:00:03][%cal Oe5e4]} 7. Bd2 {[%emt 0:00:09]} Nge7 {[%emt 0:00:55][%cal Bg8e7,Be7d5,Bd5b6][%mdl 32]} 8. Bg2 {[%emt 0:00:09] The position is equal.} O-O {[%emt 0:00:18]} 9. O-O {[%emt 0:00:03] 9.Rc1 is the modern continuation.} Re8 {[%emt 0:00:57]} 10. b4 {[%emt 0:00:15]} Nd5 {[%emt 0:00:01]} 11. Rb1 {[%emt 0:00:30]} Nd4 {[%emt 0:00:19] [#]} 12. e4 $5 $146 {[%emt 0:00:30][%mdl 8] New and interesting.} ({Predecessor:} 12. Na5 Rb8 13. e3 Nxf3+ 14. Bxf3 Be6 15. b5 Qd7 16. Qc2 Red8 17. Rfc1 h5 18. h4 {½-½ Minasian,A (2595)-Motwani,P (2464) Olympiad-34 Istanbul 2000 (2.2)}) 12... Nb6 {[%emt 0:00:26]} 13. Na5 {[%emt 0:00:47]} Bg4 {[%emt 0:00:52]} 14. Be3 {[%emt 0:00:02]} (14. Nxb7 $2 Qf6 15. Kh1 Nxf3 $19) 14... Rb8 {[%emt 0:00:23]} 15. Bxd4 {[%emt 0:00:08] Be3 would be deadly.} Bxf3 {[%emt 0:00:01]} 16. Bxf3 {[%emt 0:00:10]} Qxd4 {[%emt 0:00:02]} 17. Qc2 {[%emt 0:00:09]} c6 {[%emt 0:00:16]} 18. Rfd1 {[%emt 0:00:08]} Nd7 {[%emt 0:00:34]} 19. Bg4 {[%emt 0:00:30]} Red8 {[%emt 0:00:30]} 20. Bxd7 {[%emt 0:00:17]} Rxd7 {[%emt 0:00:16]} 21. b5 {[%emt 0:00:06]} cxb5 {[%emt 0:00:12]} (21... Rc7 $11) 22. Rxb5 $14 {[%emt 0:00:17] Hoping for Nc6.} Qd6 {[%emt 0:00:31] [#] Inhibits Nc6.} 23. Nxb7 $1 {[%emt 0:01:04][%mdl 64] Decoy} Qd4 {[%emt 0:02:23]} (23... Qa6 24. Rdb1) 24. Rdb1 {[%emt 0:01:41]} ({White should try} 24. Qc6 $16) 24... Bf8 {[%emt 0:00:32] Prevents Nd6} (24... a6 25. R5b3 $16) (24... Qxd3 $11 25. Qxd3 (25. Nc5 Qxc2 26. Rxb8+ Rd8 $11) 25... Rxd3) 25. R5b3 $1 {[%emt 0:00:28]} h5 {[%emt 0:00:14] White stays focused until the end.} (25... Qa4 $1 $14 26. Na5 (26. Nc5 Rc8 $11) 26... Rxb3 27. Nxb3 Rd6) 26. h4 {[%emt 0:00:06]} (26. Na5 $16 Rxb3 27. Rxb3) 26... Kg7 {[%emt 0:00:26]} ({Better is} 26... Qa4 $1 $14 27. Na5 (27. Nc5 Rc8 $11) 27... Rxb3 28. Nxb3 Rd6) 27. Kg2 $16 {[%emt 0:00:01]} Be7 {[%emt 0:00:03]} 28. Na5 {[%emt 0:00:05]} Rxb3 {[%emt 0:00:01]} 29. Rxb3 {[%emt 0:00:01]} Qa4 {[%emt 0:00:04]} (29... Bd6 $16 {keeps fighting.} 30. Nc4 Rc7) 30. Nc4 {[%emt 0:00:23]} Bf6 {[%emt 0:00:03]} 31. Ne3 {[%emt 0:00:02]} Bd8 {[%emt 0:00:05]} 32. Nd5 {[%emt 0:00:12] Inhibits Bb6. aiming for Qc3.} Bb6 {[%emt 0:00:02]} 33. Nxb6 {[%emt 0:01:21]} axb6 $18 {[%emt 0:00:00][%mdl 4096] Endgame KQR-KQR} 34. Qb2 {[%emt 0:00:01]} Qd4 {[%emt 0:00:01]} 35. Qxd4 {[%emt 0:00:11]} (35. Rxb6 $6 Qxb2 36. Rxb2 Rxd3 $16) 35... Rxd4 {[%emt 0:00:01] KR-KR} 36. Kf3 {[%emt 0:00:01]} (36. Rxb6 $6 Rxd3 37. Ra6 Rd4 $16) 36... Ra4 {[%emt 0:00:02] [#]} 37. a3 $1 {[%emt 0:00:01]} (37. Rxb6 $6 Rxa2 38. Rb1 Kf6 $16) 37... Kf8 {[%emt 0:00:09]} (37... f6 $142 38. Ke3 (38. Rxb6 Rxa3 39. Ke3 Ra1 $16) 38... Ra7) 38. Ke3 {[%emt 0:00:01]} (38. Rxb6 Rxa3 39. Ke3 Ra2 $16) 38... Ke7 {[%emt 0:00:01]} 39. f4 {[%emt 0:00:01]} ({Weaker is} 39. Rxb6 Rxa3 40. Rb5 Kf6 $16) 39... exf4+ {[%emt 0:00:05]} 40. gxf4 {[%emt 0:00:01] And now d4 would win.} ({Less strong is} 40. Kxf4 Rd4 41. Ke3 (41. Rxb6 Rxd3 42. a4 f6 $16) 41... Ra4 $16) 40... b5 $2 {[%emt 0:00:00]} (40... Kd7 {was necessary.} 41. Rxb6 Rxa3) 41. Rxb5 {[%emt 0:00:10]} Rxa3 {[%emt 0:00:02]} 42. f5 {[%emt 0:00:01]} Ra1 {[%emt 0:00:02]} (42... gxf5 $142 43. Rxf5 Ra1) 43. fxg6 {[%emt 0:00:02]} fxg6 {[%emt 0:00:01]} 44. Kf4 $2 {[%emt 0:00:01]} (44. d4 Rh1 45. Rb7+ Kf6 46. e5+ Ke6 47. Rb6+ Kf7 48. Rf6+ Ke8 49. Rxg6) 44... Rf1+ $2 {[%emt 0:00:03]} (44... Rd1 45. Kg5 Rxd3) 45. Ke5 {[%emt 0:00:03]} Rh1 {[%emt 0:00:02]} 46. Rb7+ {[%emt 0:00:02]} Kd8 {[%emt 0:00:01]} 47. Kd6 {[%emt 0:00:05][%cal Rb7b8]} Kc8 {[%emt 0:00:01]} 48. Rc7+ {[%emt 0:00:01]} Kb8 {[%emt 0:00:03]} 49. e5 {[%emt 0:00:10][%cal Be4e5,Be5e6][%mdl 32] White mates.} Rxh4 {[%emt 0:00:03]} 50. Rc4 {[%emt 0:00:01]} Rh1 {[%emt 0:00:05]} 51. e6 {[%emt 0:00:01] Weighted Error Value: White=0.24 (precise) /Black=0.54} 1-0

[Event "CCT Airthings Masters Play-In 2023"]
[Site "Online"]
[Date "2023.02.03"]
[Round "4"]
[White "Grischuk, Alexander"]
[Black "BogdanDeac"]
[Result "1-0"]
[ECO "D03"]
[WhiteElo "2745"]
[BlackElo "2566"]
[Annotator "TA"]
[PlyCount "145"]
[EventDate "2023.02.03"]
[EventType "swiss"]
[EventCountry "NET"]
[SourceTitle "playchess.com"]
[Source "ChessBase"]
[SourceQuality "1"]
[TimeControl "600+2"]

{[%evp 9,145,-21,0,0,0,-2,-3,-1,29,27,35,26,23,15,27,13,30,31,22,4,0,11,7,0,14,5,17,3,30,24,26,11,36,34,36,25,27,13,0,14,24,25,21,9,27,16,39,8,6,7,36,47,52,39,48,57,43,48,55,47,58,6,4,0,0,0,35,34,59,59,59,59,59,59,121,130,131,127,131,113,131,110,214,201,730,584,513,466,584,584,452,319,306,0,19,0,242,71,306,225,320,299,402,394,740,739,691,691,608,357,311,0,0,0,0,0,0,0,0,0,0,0,0,0,0,0,29977,29978,29978,29979,29979,29980,29985,29986,29988,29989,29989,29990]} 1. d4 {[%emt 0:01:47]} Nf6 {[%emt 0:00:07]} 2. Nf3 {[%emt 0:00:02]} d5 {[%emt 0:00:01]} 3. Bg5 {[%emt 0:00:02]} Ne4 {[%emt 0:00:01]} 4. Bh4 {[%emt 0:00:01]} c5 {[%emt 0:00:02]} 5. e3 {[%emt 0:00:03]} Nc6 {[%emt 0:00:26]} (5... Qb6 $5 {[%cal Rb6b2]}) 6. Nbd2 {[%emt 0:00:03] D03: 1 d4 d5 2 Nf3 Nf6 3 Bg5, including Torre Attack with early ...d5.} Qb6 {[%emt 0:02:19][%csl LRb2,LRd4] The old main line.} 7. dxc5 $5 {[%emt 0:00:28][%mdl 4] Leaves trodden paths.} Nxc5 {[%emt 0:00:36]} 8. c4 {[%emt 0:00:14] [#] The position is equal.} e6 $146 {[%emt 0:00:04]} ({Predecessor:} 8... Be6 9. Rc1 Nb4 10. Ne5 f6 11. a3 Na2 12. Rc2 fxe5 13. b4 Nxb4 14. axb4 Qxb4 15. cxd5 Bxd5 {1-0 Cesal,J (2257)-Simek,P (2258) CZE-chTJ 0102 2001 (1)}) 9. Qc2 {[%emt 0:01:16]} Bd7 {[%emt 0:01:03]} 10. a3 {[%emt 0:00:29] aiming for b4.} a5 {[%emt 0:00:02]} 11. Be2 {[%emt 0:00:01]} Be7 {[%emt 0:00:20]} 12. Bxe7 {[%emt 0:01:44]} Nxe7 {[%emt 0:00:04]} 13. O-O {[%emt 0:00:00]} O-O {[%emt 0:00:23][%cal Bh8f8,Bf8c8,Bc8c7][%mdl 32]} 14. Ne5 {[%emt 0:00:43]} Rfc8 {[%emt 0:01:06]} (14... Rfd8 {keeps more tension.} 15. Rac1 Ba4 16. Qb1 Nb3) 15. Nxd7 {[%emt 0:01:18]} Nxd7 {[%emt 0:00:06]} 16. Rac1 {[%emt 0:00:00]} Rc7 {[%emt 0:03:17]} 17. Qb1 {[%emt 0:00:20]} Rac8 {[%emt 0:00:06]} 18. cxd5 {[%emt 0:00:01]} exd5 {[%emt 0:00:16]} 19. Nf3 {[%emt 0:00:58]} Nc5 {[%emt 0:00:02]} 20. Rfd1 {[%emt 0:00:14]} Ne6 {[%emt 0:00:03]} 21. Rxc7 {[%emt 0:00:10]} Rxc7 {[%emt 0:00:03]} 22. h3 {[%emt 0:00:10]} g6 {[%emt 0:00:03]} 23. Nd4 {[%emt 0:00:09]} Nxd4 {[%emt 0:00:02]} 24. Rxd4 {[%emt 0:00:00]} Qc5 {[%emt 0:00:01]} 25. Rd1 {[%emt 0:00:09]} Qc2 {[%emt 0:00:08]} 26. Bd3 {[%emt 0:00:02]} Qb3 {[%emt 0:00:05]} 27. Rd2 {[%emt 0:00:07]} b5 {[%emt 0:00:06]} 28. Qd1 {[%emt 0:00:09]} (28. Bc2 $5 {[%cal Rc2b3]} Qc4 29. Qd1 $14) 28... Qxd1+ {[%emt 0:00:02]} 29. Rxd1 $11 {[%emt 0:00:00][%mdl 4096] Endgame KRB-KRN} b4 {[%emt 0:00:00]} 30. axb4 {[%emt 0:00:01]} axb4 {[%emt 0:00:01]} 31. Kf1 {[%emt 0:00:02]} Kg7 {[%emt 0:00:01]} 32. Ra1 {[%emt 0:00:07]} d4 {[%emt 0:00:03]} 33. exd4 {[%emt 0:00:12]} Rd7 {[%emt 0:00:01]} 34. Ke2 {[%emt 0:00:04]} Rxd4 {[%emt 0:00:01]} 35. b3 {[%emt 0:00:02]} (35. Ra7 $14 Kf6 36. Ke3) 35... Nd5 {[%emt 0:00:02]} 36. Bc4 {[%emt 0:00:00]} Nc3+ {[%emt 0:00:02]} 37. Ke3 {[%emt 0:00:02]} Re4+ {[%emt 0:00:01]} (37... Rxc4 $5 38. bxc4 b3 $11) 38. Kd3 {[%emt 0:00:01]} Rf4 {[%emt 0:00:01]} 39. f3 {[%emt 0:00:02]} h5 {[%emt 0:00:02]} 40. Ra7 {[%emt 0:00:02]} g5 {[%emt 0:00:01]} 41. Rb7 {[%emt 0:00:02]} g4 {[%emt 0:00:01]} (41... Na2 $1 $14) 42. hxg4 $16 {[%emt 0:00:02]} (42. Rxb4 $6 gxh3 43. gxh3 Rxf3+ 44. Kd4 Rxh3 $11) 42... hxg4 {[%emt 0:00:00]} 43. Ke3 {[%emt 0:00:04]} (43. Rxb4 $6 gxf3 44. gxf3 Rxf3+ 45. Kd4 Nb1 $11) 43... gxf3 {[%emt 0:00:08]} 44. gxf3 {[%emt 0:00:01]} ({Don't play} 44. Kxf4 $6 fxg2 45. Rxf7+ (45. Rxb4 g1=Q $19) 45... Kh6 $11) 44... Rf6 {[%emt 0:00:02]} 45. Rxb4 {[%emt 0:00:01] White is more active.} Rd6 {[%emt 0:00:02]} (45... Nd1+ $16 46. Kd3 Rd6+ 47. Ke4 Nf2+ 48. Ke3 Nd1+ 49. Ke4 Nf2+ 50. Kf4 Nd3+ 51. Bxd3 Rxd3) 46. Rb7 $18 {[%emt 0:00:03]} Nd5+ $2 {[%emt 0:00:01]} (46... Rf6 47. f4 Nd1+ 48. Ke2 Nc3+ 49. Kf3 Nd1) 47. Ke4 {[%emt 0:00:02]} Nc3+ {[%emt 0:00:05]} 48. Ke5 {[%emt 0:00:03]} Rf6 {[%emt 0:00:01]} 49. f4 {[%emt 0:00:01]} Nd1 {[%emt 0:00:02]} 50. Ke4 {[%emt 0:00:04]} Nf2+ {[%emt 0:00:02]} 51. Ke5 $2 {[%emt 0:00:02]} (51. Kf3 $18 Nd1 52. b4) 51... Ng4+ {[%emt 0:00:02]} 52. Ke4 $2 {[%emt 0:00:00]} (52. Kd5 $11) 52... Nf2+ {[%emt 0:00:01]} 53. Ke3 $2 {[%emt 0:00:02]} (53. Kf3 $18 {is the precise move to win.} Nd1 54. b4) 53... Ng4+ {[%emt 0:00:03] [#]} (53... Nh3 $16) 54. Kf3 $1 {[%emt 0:00:01]} Ne5+ {[%emt 0:00:01]} (54... Nh6 {was necessary.} 55. Bd3 Nf5) 55. Ke4 {[%emt 0:00:01]} Ng6 {[%emt 0:00:00]} 56. f5 {[%emt 0:00:01]} Nh4 {[%emt 0:00:01]} 57. Be6 {[%emt 0:00:06] b4 is the strong threat.} Kf8 {[%emt 0:00:04]} 58. Ke5 {[%emt 0:00:01]} Kg7 {[%emt 0:00:01]} 59. b4 {[%emt 0:00:02] Strongly threatening Kf4.} Nf3+ {[%emt 0:00:01]} 60. Ke4 $2 {[%emt 0:00:01]} (60. Kd5 $18) 60... Ng5+ $11 {[%emt 0:00:01]} 61. Kd5 {[%emt 0:00:04] b5 would be deadly.} Nxe6 {[%emt 0:00:02]} 62. fxe6 {[%emt 0:00:00]} Rxe6 {[%emt 0:00:01] KR-KR} 63. b5 {[%emt 0:00:01]} Re1 {[%emt 0:00:00]} 64. Rc7 {[%emt 0:00:05] Hoping for b6.} Rb1 {[%emt 0:00:02]} 65. Kc6 {[%emt 0:00:01] Black must now prevent b6.} Kg6 {[%emt 0:00:01]} 66. b6 {[%emt 0:00:03] And now b7 would win.} f5 $1 {[%emt 0:00:01]} 67. b7 {[%emt 0:00:01] White wants to mate with Rc8.} Kg5 $2 {[%emt 0:00:02][%mdl 8192] [#]} (67... f4 $11) 68. Rc8 $1 {[%emt 0:00:04] White mates.} Kf4 {[%emt 0:00:06]} 69. b8=Q+ {[%emt 0:00:02]} ({Inferior is} 69. b8=B+ Ke4 $11) 69... Rxb8 {[%emt 0:00:02]} 70. Rxb8 {[%emt 0:00:00]} Ke3 {[%emt 0:00:00]} 71. Kd5 {[%emt 0:00:01]} f4 {[%emt 0:00:01]} 72. Rb3+ {[%emt 0:00:01]} Ke2 {[%emt 0:00:03]} 73. Ke4 {[%emt 0:00:01] Weighted Error Value: White=0.31/Black=0.24 (precise)} 1-0

[Event "CCT Airthings Masters Play-In 2023"]
[Site "Online"]
[Date "2023.02.03"]
[Round "4"]
[White "Andreikin, Dmitry"]
[Black "chesspanda123"]
[Result "1-0"]
[ECO "D30"]
[WhiteElo "2729"]
[BlackElo "2636"]
[Annotator "NA"]
[PlyCount "99"]
[EventDate "2023.02.03"]
[EventType "swiss"]
[EventCountry "NET"]
[SourceTitle "playchess.com"]
[Source "ChessBase"]
[SourceQuality "1"]
[TimeControl "600+2"]

1. d4 {[%emt 0:00:17]} Nf6 {[%emt 0:01:36]} 2. c4 {[%emt 0:00:16]} e6 {[%emt 0:00:01]} 3. Nf3 {[%emt 0:00:02]} d5 {[%emt 0:00:01]} 4. e3 {[%emt 0:00:03]} Bd6 {[%emt 0:00:03]} 5. Nc3 {[%emt 0:00:07]} O-O {[%emt 0:00:01]} 6. c5 {[%emt 0:00:08]} Be7 {[%emt 0:00:01]} 7. b4 {[%emt 0:00:00]} b6 {[%emt 0:00:06]} 8. Bb2 {[%emt 0:00:02]} c6 {[%emt 0:00:02]} 9. a3 {[%emt 0:00:29]} Qc7 {[%emt 0:00:10]} 10. Bd3 {[%emt 0:00:25]} Ba6 {[%emt 0:00:02]} 11. Ne5 {[%emt 0:00:16]} Bxd3 {[%emt 0:00:08]} 12. Nxd3 {[%emt 0:00:00]} Nbd7 {[%emt 0:00:02]} 13. O-O {[%emt 0:00:03]} a5 {[%emt 0:00:10]} 14. Qc2 {[%emt 0:00:03]} Qb7 {[%emt 0:00:33]} 15. h3 {[%emt 0:00:09]} h6 {[%emt 0:00:11]} 16. Rfb1 {[%emt 0:00:05]} axb4 {[%emt 0:00:04]} 17. axb4 {[%emt 0:00:01]} Rxa1 {[%emt 0:00:03]} 18. Rxa1 {[%emt 0:00:06]} Ra8 {[%emt 0:00:01]} 19. Rxa8+ {[%emt 0:00:05]} Qxa8 {[%emt 0:00:01]} 20. Qa4 {[%emt 0:00:01]} Qxa4 {[%emt 0:00:23]} 21. Nxa4 {[%emt 0:00:00]} b5 {[%emt 0:00:02]} 22. Nc3 {[%emt 0:00:12]} Ne4 {[%emt 0:00:08]} 23. Ne2 {[%emt 0:00:18]} Nd2 {[%emt 0:00:10]} 24. Bc3 {[%emt 0:00:15]} Nc4 {[%emt 0:00:01]} 25. g4 {[%emt 0:00:04]} f5 {[%emt 0:00:26]} 26. Kg2 {[%emt 0:00:03]} Kf7 {[%emt 0:00:06]} 27. Ne5+ {[%emt 0:00:10]} Ndxe5 {[%emt 0:00:20]} 28. dxe5 {[%emt 0:00:00]} fxg4 {[%emt 0:00:50]} 29. hxg4 {[%emt 0:00:03]} Ke8 {[%emt 0:00:04]} 30. Nd4 {[%emt 0:00:46]} Kd7 {[%emt 0:00:04]} 31. Nc2 {[%emt 0:00:01]} g6 {[%emt 0:00:35]} 32. f4 {[%emt 0:00:03]} Bd8 {[%emt 0:00:33]} 33. Kf3 {[%emt 0:00:03]} Bh4 {[%emt 0:00:28]} 34. Nd4 {[%emt 0:00:04]} Bd8 {[%emt 0:00:19]} 35. Ke2 {[%emt 0:00:08]} Bc7 {[%emt 0:00:56]} 36. Nf3 {[%emt 0:00:26]} Bd8 {[%emt 0:00:03]} 37. Kd3 {[%emt 0:00:02]} h5 {[%emt 0:00:54]} 38. gxh5 {[%emt 0:02:14]} gxh5 {[%emt 0:00:01]} 39. Ke2 {[%emt 0:00:14]} Be7 {[%emt 0:00:32]} 40. Be1 {[%emt 0:00:07]} Na3 {[%emt 0:00:13]} 41. Nd4 {[%emt 0:00:17]} Nc4 {[%emt 0:00:06]} 42. f5 {[%emt 0:00:08]} exf5 {[%emt 0:00:30]} 43. e6+ {[%emt 0:00:00]} Ke8 {[%emt 0:00:01]} 44. Nxc6 {[%emt 0:00:23]} Bg5 {[%emt 0:00:01]} 45. Nd4 {[%emt 0:00:10]} Bxe3 {[%emt 0:00:17]} 46. Nxf5 {[%emt 0:00:08]} Bg5 {[%emt 0:00:03]} 47. c6 {[%emt 0:00:07]} Kd8 {[%emt 0:00:08]} 48. Bg3 {[%emt 0:00:07]} h4 {[%emt 0:00:06]} 49. c7+ {[%emt 0:00:10]} Kc8 {[%emt 0:00:01]} 50. e7 {[%emt 0:00:01]} 1-0

[Event "CCT Airthings Masters Play-In 2023"]
[Site "Online"]
[Date "2023.02.03"]
[Round "4"]
[White "Duda, Jan-Krzysztof"]
[Black "Eltaj_Safarli"]
[Result "0-1"]
[ECO "D00"]
[WhiteElo "2729"]
[BlackElo "2508"]
[Annotator "TA"]
[PlyCount "128"]
[EventDate "2023.02.03"]
[EventType "swiss"]
[EventCountry "NET"]
[SourceTitle "playchess.com"]
[Source "ChessBase"]
[SourceQuality "1"]
[TimeControl "600+2"]

{[%evp 11,128,0,2,-4,33,17,20,6,35,42,40,18,2,23,2,-110,-113,-95,-99,-225,-233,-230,-233,-226,-215,-211,-208,-205,-149,-158,-162,-162,-162,-162,-162,-196,-146,-162,-155,-161,-161,-169,-169,-169,-169,-169,-162,-162,-155,-140,-122,-140,-146,-171,-166,-164,-164,-175,-148,-157,-147,-225,-143,-233,-241,-239,-235,-284,-283,-330,-341,-350,-335,-335,-321,-397,-397,-352,-361,-334,-315,-475,-392,-674,-677,-634,-560,-669,-588,-1937,-1868,-1657,-1869,-1007,-781,-1859,-1640,-1555,-1493,-1395,-1242,-7042,-731,-6428,-5845,-29977,-29978,-29976,-29974,-29983,-29984,-29985,-29986,-29986,-29987,-29987,-29988,-29988,-29984]} 1. d4 {[%emt 0:00:57]} Nf6 {[%emt 0:00:06]} 2. Bf4 {[%emt 0:00:07]} d5 {[%emt 0:00:07]} 3. e3 {[%emt 0:00:02]} c5 {[%emt 0:00:05]} 4. c3 {[%emt 0:00:02]} Nc6 {[%emt 0:00:05]} 5. Nd2 {[%emt 0:00:05]} Bf5 {[%emt 0:00:50]} 6. Ngf3 {[%emt 0:00:14]} e6 $1 {[%emt 0:00:01] The main line 6...e6 scores better than 6...Qb6.} 7. Qb3 {[%emt 0:00:06] D00: 1 d4 d5: Unusual lines.} Qb6 {[%emt 0:00:12]} 8. Qxb6 {[%emt 0:00:30]} axb6 {[%emt 0:00:00]} 9. Bb5 {[%emt 0:00:20] The position is equal.} Be7 {[%emt 0:00:15]} 10. Ne5 {[%emt 0:00:16]} Rc8 {[%emt 0:00:05]} 11. Nxc6 {[%emt 0:00:12]} (11. dxc5 {is interesting.} Bxc5 12. Nb3 Ke7 13. Nd4) 11... bxc6 {[%emt 0:00:11]} 12. Ba6 {[%emt 0:00:00]} Rd8 {[%emt 0:00:09] [#]} 13. Bb7 $146 {[%emt 0:00:38]} (13. Nf3 $1 $11 {was the only way to keep the balance.}) ({Predecessor:} 13. Bc7 Ra8 14. Bb7 Kd7 15. Bxa8 Kxc7 16. Bxc6 Kxc6 17. f3 Bd3 18. Kf2 c4 19. g4 {0-1 Lock,G (2113)-Bach,N (2198) Titled Tuesday intern op 26th Oct blitz 2021 (8)}) 13... Kd7 $1 $17 {[%emt 0:00:05][%cal Be8d7,Bd7c6,Bc6b7][%mdl 32]} 14. Nf3 {[%emt 0:00:00][%cal Bd2f3,Bf3e5,Be5f7][%mdl 32]} Nh5 $1 {[%emt 0:01:02]} 15. Bxc6+ {[%emt 0:03:26]} Kxc6 $19 {[%emt 0:00:13]} 16. Ne5+ {[%emt 0:00:05]} Kb7 {[%emt 0:00:02] White must now prevent ...Nxf4.} 17. Nxf7 {[%emt 0:00:00] [#]} Nxf4 {[%emt 0:00:20][%mdl 64] Deflection} 18. exf4 {[%emt 0:00:00]} cxd4 {[%emt 0:00:01]} 19. cxd4 {[%emt 0:00:10][%cal Oe1e2]} Bf6 {[%emt 0:00:32][%cal Of6d4] Hoping for ...Bxd4!} 20. Rd1 {[%emt 0:00:05]} Rhf8 {[%emt 0:00:12]} 21. Nxd8+ {[%emt 0:00:02]} Rxd8 {[%emt 0:00:00]} ({Not} 21... Bxd8 22. O-O $17) 22. Ke2 {[%emt 0:00:26]} Rc8 {[%emt 0:01:40][%mdl 1024] Black has strong compensation.} 23. Rd2 {[%emt 0:00:05]} b5 {[%emt 0:00:01]} (23... g5 $19 24. g3 gxf4 25. gxf4 Be7) 24. f3 {[%emt 0:00:18]} h5 {[%emt 0:00:02]} 25. a3 {[%emt 0:00:19]} Rc4 {[%emt 0:00:09]} 26. Ke3 {[%emt 0:00:08]} b4 {[%emt 0:00:04]} 27. axb4 {[%emt 0:00:06]} Rxb4 {[%emt 0:00:00]} 28. Rc1 {[%emt 0:00:02]} Bd8 {[%emt 0:00:20]} 29. Rc3 {[%emt 0:00:29]} Ba5 {[%emt 0:00:03]} 30. Ra3 {[%emt 0:00:12]} Bb6 {[%emt 0:00:11]} 31. Rc3 {[%emt 0:00:23]} Rb5 {[%emt 0:00:04] Black is more active.} 32. Ra3 {[%emt 0:00:05]} Bc7 {[%emt 0:00:18]} 33. Re2 {[%emt 0:00:33] [#]} Bd6 $1 {[%emt 0:00:09]} 34. Rc3 {[%emt 0:00:01] [#]} Bb4 $1 {[%emt 0:00:02]} 35. Rc1 {[%emt 0:00:01]} Ba5 {[%emt 0:00:01] This pair of bishops is nice.} 36. Kf2 {[%emt 0:00:10]} (36. Ra1 $17 {might work better.}) 36... Rb3 {[%emt 0:00:16]} 37. Rd1 {[%emt 0:00:28]} (37. Ra1 $17 Bc7 38. g3) 37... Kc6 {[%emt 0:00:09]} 38. Kg3 {[%emt 0:00:03]} Kd7 {[%emt 0:00:14]} 39. Kh4 {[%emt 0:00:03]} g6 {[%emt 0:00:26]} 40. Ra1 {[%emt 0:00:08]} Bd8+ {[%emt 0:00:03]} 41. Kg3 {[%emt 0:00:01]} h4+ {[%emt 0:00:04]} 42. Kf2 {[%emt 0:00:02]} Bb6 {[%emt 0:00:00] Repels Ra7+} 43. Rd2 {[%emt 0:00:01] [#]} Rxb2 $3 {[%emt 0:00:08][%mdl 576] Decoy} 44. Ke1 {[%emt 0:00:05]} (44. Ke3 Rxd2) 44... Rxd2 {[%emt 0:00:04][%mdl 64] Remove Defender} 45. Kxd2 {[%emt 0:00:00]} Bxd4 {[%emt 0:00:00]} 46. Ra8 {[%emt 0:00:04]} (46. Ra2 $142) 46... Bc5 {[%emt 0:00:08]} 47. g4 $2 {[%emt 0:00:01]} (47. Rh8 Be7 48. Ke2) 47... hxg3 {[%emt 0:00:06]} 48. hxg3 {[%emt 0:00:00]} d4 {[%emt 0:00:17] aiming for ...Bb4+.} 49. Rb8 {[%emt 0:00:03] Wards off Bb4+} Bd6 {[%emt 0:00:39]} 50. Ra8 {[%emt 0:00:02]} Bb4+ {[%emt 0:00:02]} 51. Kd1 {[%emt 0:00:01]} Bd3 {[%emt 0:00:06]} 52. Ra4 {[%emt 0:00:03]} Bc3 {[%emt 0:00:01]} 53. g4 {[%emt 0:00:00]} Bf1 {[%emt 0:00:08]} 54. Ra7+ {[%emt 0:00:07]} Kc6 {[%emt 0:00:02]} 55. Ra8 {[%emt 0:00:02]} Kd5 {[%emt 0:00:04]} 56. Rc8 {[%emt 0:00:02]} Ba6 {[%emt 0:00:07]} (56... Bc4 $142 57. Rd8+ Kc5) 57. Rd8+ {[%emt 0:00:01]} Kc4 {[%emt 0:00:02] ( -> ...d3)} 58. Rd6 {[%emt 0:00:02]} Bb7 {[%emt 0:00:03] Black mates.} 59. Ke2 {[%emt 0:00:01]} Bd5 {[%emt 0:00:03]} 60. Rd8 {[%emt 0:00:02]} d3+ {[%emt 0:00:02][%cal Bd4d3,Bd3d2][%mdl 32]} 61. Ke3 {[%emt 0:00:01]} d2 {[%emt 0:00:04]} 62. Ke2 {[%emt 0:00:01]} Kb3 {[%emt 0:00:02]} 63. Rxd5 {[%emt 0:00:06]} exd5 {[%emt 0:00:01]} 64. Kd1 {[%emt 0:00:00]} Kc4 {[%emt 0:00:06] Weighted Error Value: White=0.75/Black=0.24 (precise)} 0-1